Cogmind - Beta 14 @@@ ROGUE MODE // 2024.08.23 @ 14:33:13 Player: Dosh Result: Destroyed by S-10 Pest with Light Assault Rifle Performance ------------- Evolutions (0) 0 Regions Visited (4) 800 Robots Destroyed (16) 80 Value Destroyed (421) 421 Prototype IDs (29) 580 Alien Tech Used (0) 0 Bonus (300) 300 TOTAL SCORE: 2181 Bonus ------- Aligned with FarCom 300 Cogmind --------- Core Integrity 0/250 Matter 53/300 Energy 115/125 System Corruption 1% Temperature Cool (0) Movement Walking (90) Location -9/Mines Parts ------- > --- POWER (1) -------- Light Ion Engine > --- PROPULSION (2) --- Potential Leg Potential Leg > --- UTILITY (2) ------ Large Storage Unit Improved Light Armor Plating > --- WEAPON (2) ------- Grenade Launcher > --- INVENTORY (15) --- Light Treads Light Treads Machine Analyzer 0b10 Alert Chip Advanced Targeting Computer System Shield Authchip [R/NC] Authchip [Armor] EM Pulse Cannon Light Assault Rifle Light Assault Rifle Light Assault Rifle Datajack Longsword +1 Peak State ------------ > --- POWER ------------ Light Ion Engine > --- PROPULSION ------- Potential Leg Potential Leg > --- UTILITY ---------- Large Storage Unit Improved Light Armor Plating > --- WEAPON ----------- Grenade Launcher > --- INVENTORY -------- Light Treads Light Treads Machine Analyzer 0b10 Alert Chip Advanced Targeting Computer System Shield Authchip [R/NC] Authchip [Armor] EM Pulse Cannon Light Assault Rifle Light Assault Rifle Light Assault Rifle Datajack Longsword +1 [Rating: 30] Favorites ----------- Power Light Ion Engine Engine Light Ion Engine Propulsion Light Treads Treads Light Treads Leg Potential Leg Utility Large Storage Unit Storage Large Storage Unit Processor Targeting Computer Protection Improved Light Armor Plating Weapon Light Assault Rifle Ballistic Gun Light Assault Rifle Launcher Grenade Launcher Build | -11 -10 -10 -10 -9 ------- Run | Yrd Mat Min Exi Min Slots Evolved . | . . . . . Power . | . . . . . Propulsion . | . . . . . Utility . | . . . . . Weapon . | . . . . . Parts Attached 29 | 6 7 10 5 1 Power 3 | 1 . 1 1 . Engine 3 | 1 . 1 1 . Core . | . . . . . Reactor . | . . . . . Propulsion 9 | 2 2 3 2 . Treads 7 | 2 2 3 . . Leg 2 | . . . 2 . Wheel . | . . . . . Hover . | . . . . . Flight . | . . . . . Utility 6 | 1 2 1 2 . Device . | . . . . . Storage 3 | 1 1 . 1 . Processor 1 | . 1 . . . Hackware . | . . . . . Protection 2 | . . 1 1 . Artifact . | . . . . . Weapon 11 | 2 3 5 . 1 Energy Gun . | . . . . . Energy Cannon . | . . . . . Ballistic Gun 8 | 2 3 3 . . Ballistic Cannon . | . . . . . Launcher 3 | . . 2 . 1 Special Weapon . | . . . . . Impact Weapon . | . . . . . Slashing Weapon . | . . . . . Piercing Weapon . | . . . . . Special Melee Weapon . | . . . . . Unidentified Prototypes . | . . . . . Parts Lost 4 | . . 4 . . Power 1 | . . 1 . . Propulsion 2 | . . 2 . . Utility . | . . . . . Weapon 1 | . . 1 . . Highest Loss Streak 3 | . . 3 . . To Critical Strikes . | . . . . . Average Slot Usage (%) 95 | . 97 99 71 . Engine 13 | . 14 13 13 . Treads 26 | . 28 27 17 . Leg 1 | . . . 10 . Storage 14 | . 14 14 14 . Processor 10 | . 12 9 . . Protection 2 | . . 4 14 . Ballistic Gun 22 | . 27 21 . . Launcher 1 | . . 6 . . Peak Build Rating 30 | 6 9 11 29 30 Average Rating 9 | 4 7 10 16 30 On Entrance 10 | . 6 9 10 29 Naked Turns . | . . . . . Heaviest Build 32 | 11 31 32 26 . Greatest Support 60 | 40 40 42 60 . Greatest Overweight (x) 1 | 1 . . . . Average Overweight (x) . | . . . . . Largest Inventory Capacity 15 | 8 15 15 15 15 Average Capacity 14 | 6 14 15 15 15 Most Carried 15 | 1 12 15 15 14 Average Carried 9 | . 7 13 13 14 Final Capacity 15 | 8 15 15 15 15 Final Carried 15 | 1 12 12 15 14 Class Distribution -------------------- 100% | Mutant Dominant Class ---------------- Mutant | -10/Materials Mutant | -10/Mines Mutant | -10/Exiles Mutant | -9/Mines Resources | -11 -10 -10 -10 -9 ----------- Run | Yrd Mat Min Exi Min Matter Collected 751 | 227 400 124 . . Remotely . | . . . . . Salvage Created 594 | . 426 168 . . Parts 31 | . 26 5 . . Haulers Intercepted 2 | . 2 . . . Recyclers Shooed 1 | . . 1 . . Parts Field Recycled . | . . . . . Retrieved Matter . | . . . . . Parts Self-Destructed . | . . . . . Prevented . | . . . . . Kills | -11 -10 -10 -10 -9 ------- Run | Yrd Mat Min Exi Min Combat Hostiles Destroyed 14 | . 6 8 . . Guns 11 | . 6 5 . . AOE 3 | . . 3 . . Classes Destroyed 8 | . 6 2 . . Worker 2 | . 2 . . . Hauler 2 | . 2 . . . Mechanic 1 | . 1 . . . Operator 1 | . 1 . . . Watcher 1 | . 1 . . . Grunt 7 | . 6 1 . . Demolisher 2 | . . 2 . . Assembled 5 | . . 5 . . Best Kill Streak 2 | . 2 2 . . Combat Bots Only 2 | . 2 2 . . Max Kills in Single Turn 1 | . 1 1 . . Gunslinging . | . . . . . Exploded 1 | . . 1 . . Melee . | . . . . . Uniques/NPCs Destroyed . | . . . . . Combat | -11 -10 -10 -10 -9 -------- Run | Yrd Mat Min Exi Min Hostile Shots Fired 79 | . 32 46 . 1 Missed 15 | . 5 10 . . Damage Taken 1435 | . 346 1080 . 9 Core 250 | . 53 188 . 9 Absorbed by Shields . | . . . . . Regen/Repaired (Parts) 125 | . 125 . . . Core Remaining (%) 100 | 100 . . . . Volleys Fired 115 | . 71 44 . . Largest 2 | . 2 2 . . Hottest 50 | . 40 50 . . Shots Fired 224 | . 142 82 . . Gun 213 | . 142 71 . . Cannon . | . . . . . Launcher 11 | . . 11 . . Special . | . . . . . Kinetic 213 | . 142 71 . . Thermal . | . . . . . Explosive 11 | . . 11 . . Electromagnetic . | . . . . . Robot Hit Streak 13 | . 13 11 . . Robot Miss Streak 5 | . 5 2 . . Penetration Max . | . . . . . Secondary Targets 2 | . 1 1 . . Max Gunslinging Chain 1 | . 1 1 . . Shots Hit Robots 140 | . 87 53 . . Core Hits 55 | 1 30 24 . . Critical Kills . | . . . . . Critical Parts Destroyed 3 | . 3 . . . Critical Strikes 3 | . 3 . . . Destroy 3 | . 3 . . . Melee Attacks . | . . . . . Impact . | . . . . . Slashing . | . . . . . Piercing . | . . . . . Sneak Attacks . | . . . . . Combat Hostiles . | . . . . . Follow-up Attacks . | . . . . . Damage Inflicted 1709 | 4 947 758 . . Guns 1389 | . 928 461 . . Cannons . | . . . . . Explosions 293 | . . 293 . . Melee . | . . . . . Ramming 27 | 4 19 4 . . Kinetic 1389 | . 928 461 . . Thermal . | . . . . . Explosive 293 | . . 293 . . Electromagnetic . | . . . . . Impact . | . . . . . Slashing . | . . . . . Piercing . | . . . . . Highest Corruption 1 | . 1 1 1 1 Average Corruption 1 | . 1 1 1 1 Corruption Purged . | . . . . . Corruption Blocked . | . . . . . Effects 14 | . 6 6 2 . Message Errors 4 | . . 3 1 . Matter Fused 4 | . 3 1 . . Heat Flow Errors 2 | . 1 . 1 . Energy Discharges 1 | . 1 . . . Parts Rejected 1 | . . 1 . . Data Loss (minor) 2 | . 1 1 . . Overload Shots . | . . . . . Overflow Damage . | . . . . . Projectiles . | . . . . . Explosions . | . . . . . Melee . | . . . . . Knockbacks . | . . . . . Impact . | . . . . . Kinetic . | . . . . . Secondary . | . . . . . Self-Inflicted Damage 71 | . . 71 . . Shots 3 | . . 3 . . Rammed 11 | 2 6 3 . . Targets Rammed 13 | 2 8 3 . . Kicked . | . . . . . Crushed 2 | . 2 . . . Highest Temperature 263 | . 263 28 212 . Average Temperature 56 | . 83 10 109 . Received Heat Transfer 231 | . 183 48 . . Effects 1 | . 1 . . . Energy Bleed 1 | . 1 . . . Siege Activations . | . . . . . Robots Corrupted . | . . . . . Combat Hostiles . | . . . . . Parts Fried . | . . . . . Impact Corruptions . | . . . . . Robots Melted . | . . . . . Combat Hostiles . | . . . . . Parts Melted 1 | . . 1 . . Heat Transferred . | . . . . . Parts Sabotaged . | . . . . . Parts Stolen . | . . . . . Parts Stripped . | . . . . . Power Chain Reactions . | . . . . . Alert | -11 -10 -10 -10 -9 ------- Run | Yrd Mat Min Exi Min Peak Influence 120 | . 109 120 . . Initial . | . . . . . Average 33 | . 33 36 . . Maximum Alert Level . | . . . . . Low Security (%) 100 | 100 100 100 . 100 Level 1 . | . . . . . Level 2 . | . . . . . Level 3 . | . . . . . Level 4 . | . . . . . Level 5 . | . . . . . High Security . | . . . . . Max Security . | . . . . . Squads Dispatched 6 | . 5 1 . . Investigation 4 | . 3 1 . . Extermination . | . . . . . Reinforcement 2 | . 2 . . . Assault . | . . . . . Garrison . | . . . . . Intercept . | . . . . . Searches Triggered . | . . . . . Construction Impeded . | . . . . . Haulers Reinforced . | . . . . . Active Scanning Responses . | . . . . . Cargo Convoy Interrupts . | . . . . . Stealth | -11 -10 -10 -10 -9 --------- Run | Yrd Mat Min Exi Min Distress Signals 1 | . . 1 . . Communications Jammed . | . . . . . Distress Signals . | . . . . . Times Spotted 40 | . 23 14 . 3 Peak Tracking Total 3 | . 3 3 . 3 Tactical Retreats . | . . . . . Traps | -11 -10 -10 -10 -9 ------- Run | Yrd Mat Min Exi Min Traps Triggered 2 | . 2 . . . Indirectly . | . . . . . Trap Hack Attempts . | . . . . . Triggered . | . . . . . Disarmed . | . . . . . Reprogrammed . | . . . . . Reused . | . . . . . Traps Extracted . | . . . . . Installed . | . . . . . Triggered . | . . . . . Machines | -11 -10 -10 -10 -9 ---------- Run | Yrd Mat Min Exi Min Machines Disabled . | . . . . . Max in Single Turn . | . . . . . Machines Repaired . | . . . . . Machines Dismantled . | . . . . . Machines Sabotaged . | . . . . . Overloaded Fab Kills . | . . . . . Hacking | -11 -10 -10 -10 -9 --------- Run | Yrd Mat Min Exi Min Machines Accessed 13 | . 10 1 2 . Terminals 8 | . 8 . . . Fabricators . | . . . . . Repair Stations 1 | . 1 . . . Recycling Units 1 | . 1 . . . Scanalyzers . | . . . . . Garrison Access . | . . . . . Total Hacks 37 | . 34 1 2 . Successful 24 | . 21 1 2 . Failed 12 | . 12 . . . Catastrophic . | . . . . . Database Lockouts 1 | . 1 . . . Manual 15 | . 14 . 1 . Terminals 29 | . 29 . . . Fabricators . | . . . . . Repair Stations 4 | . 4 . . . Recycling Units 1 | . 1 . . . Scanalyzers . | . . . . . Garrison Access . | . . . . . Terminal Hacks 11 | . 8 1 2 . Record 1 | . . . 1 . Robot Schematic 1 | . 1 . . . Robot Analysis 2 | . 2 . . . Prototype ID Bank 5 | . 5 . . . Open Door 1 | . . 1 . . Derelict Proto ID Bank 1 | . . . 1 . Fabricator Hacks . | . . . . . Repair Station Hacks 4 | . 4 . . . Scan Component 2 | . 2 . . . Repair 2 | . 2 . . . Recycling Unit Hacks . | . . . . . Scanalyzer . | . . . . . Garrison Access Hacks . | . . . . . Unauthorized Hacks 9 | . 9 . . . Terminals 8 | . 8 . . . Botnet 1 | . 1 . . . Skim 7 | . 7 . . . Fabricators . | . . . . . Repair Stations . | . . . . . Recycling Units 1 | . 1 . . . Tunnel 1 | . 1 . . . Scanalyzers . | . . . . . Garrison Access . | . . . . . Data Cores Recovered . | . . . . . Used . | . . . . . Hacking Detections 6 | . 6 . . . Full Trace Events . | . . . . . Feedback Events . | . . . . . Feedback Blocked . | . . . . . Robot Schematics Acquired 1 | . 1 . . . Robots Built . | . . . . . Authchips . | . . . . . Time . | . . . . . Total Robot Build Rating . | . . . . . Part Schematics Acquired . | . . . . . Parts Built . | . . . . . Authchips . | . . . . . Time . | . . . . . Total Part Build Rating . | . . . . . Parts Repaired 2 | . 2 . . . Time 52 | . 52 . . . Parts Recycled . | . . . . . Recycled Matter . | . . . . . Retrieved Matter . | . . . . . Retrieved Components . | . . . . . Parts Scanalyzed . | . . . . . Part Schematics Acquired . | . . . . . Parts Damaged . | . . . . . Bothacking | -11 -10 -10 -10 -9 ------------ Run | Yrd Mat Min Exi Min Used RIF Installer . | . . . . . Robots Hacked . | . . . . . Non-combat . | . . . . . Combat . | . . . . . Robot Hacks Applied . | . . . . . Relay Couplers Released . | . . . . . Fabnet Peak Effective % . | . . . . . Robots Rewired . | . . . . . Allies Hacked . | . . . . . Hacks Repelled . | . . . . . Allies | -11 -10 -10 -10 -9 -------- Run | Yrd Mat Min Exi Min Total Allies 4 | . . 4 . . Largest Group 3 | . . 3 . . Highest-Rated Group 40 | . . 40 . . Highest-Rated Ally 31 | . . 31 . . Total Orders . | . . . . . Ally Attacks 8 | . . 8 . . Total Damage 63 | . . 63 . . Kills . | . . . . . Allies Corrupted . | . . . . . Allies Melted . | . . . . . Intel | -11 -10 -10 -10 -9 ------- Run | Yrd Mat Min Exi Min Robot Analysis Total 2 | . 2 . . . Derelict Logs Recovered 2 | . . 2 . . Drone Launches . | . . . . . Drone Recoveries . | . . . . . Exploration | -11 -10 -10 -10 -9 ------------- Run | Yrd Mat Min Exi Min Turns Passed 2813 | 74 1618 816 304 1 Spaces Moved 1496 | 44 822 393 237 . Core 9 | 9 . . . . Treads 1362 | 35 822 393 112 . Legs 125 | . . . 125 . Wheels . | . . . . . Hover . | . . . . . Flight . | . . . . . Fastest Speed 50 | 50 160 152 90 . Average Speed 152 | 139 160 156 123 . Slowest Speed 160 | 160 160 160 160 . Overloaded Moves . | . . . . . Propulsion Burnouts . | . . . . . Robots Hopped . | . . . . . Cave-ins Triggered . | . . . . . Exploration Rate (%) 49 | 4 97 78 60 6 Regions Visited 4 Branch Regions 3 Pre-discovered Areas 4 | . 3 . 1 . Known Exits Taken 1 | . 1 . . . Unknown Exits Taken 3 | 1 . 1 1 . Scrap Searched 1 | . . 1 . . Spaces Dug . | . . . . . Terrain Destroyed 87 | . . 87 . . Melee . | . . . . . Projectile . | . . . . . AOE 87 | . . 87 . . Terrain Rammed . | . . . . . Walls Destroyed . | . . . . . Machines Disabled . | . . . . . Actions | -11 -10 -10 -10 -9 --------- Run | Yrd Mat Min Exi Min Total 1810 | 52 990 517 250 1 Wait 133 | . 73 60 . . Move 1492 | 43 821 392 236 . Hop . | . . . . . Pick Up 15 | 1 8 4 2 . Fast Attach 16 | 6 4 2 4 . Attach 5 | . . 3 1 1 Detach 5 | . 1 1 3 . Swap 8 | . 3 5 . . Drop 8 | . 1 3 4 . Fire 115 | . 71 44 . . Melee . | . . . . . Ram . | . . . . . Kick . | . . . . . Crush 13 | 2 8 3 . . Escape Stasis . | . . . . . Rewire . | . . . . . Trap . | . . . . . Miscellaneous . | . . . . . Route ------- -11/Scrapyard -10/Materials (discovered 5 exits: [*Mat x3] / *Min / Sub) -10/Mines (discovered 3 exits: [*Mat x2] / *Exi) -10/Exiles -9/Mines History --------- Turn | Location | Event 9 | -11/Scrapyard | Discovered new exit (range 16) 75 | -11/Scrapyard | Entered Materials 183 | -10/Materials | Met 8R-AWN 316 | -10/Materials | Build established: Mutant 400 | -10/Materials | Central database locked down 601 | -10/Materials | Discovered new exit (range 8) 858 | -10/Materials | Discovered new exit (range 16) 1060 | -10/Materials | Discovered new exit (range 15) 1164 | -10/Materials | Learned Storage emergency access door positions 1181 | -10/Materials | Discovered new exit (range 15) 1227 | -10/Materials | Learned location of Recycling (-7) 1279 | -10/Materials | Identified exit to Mines 1375 | -10/Materials | Identified exit to Subcaves 1440 | -10/Materials | Learned location of 1 exit from Storage 1571 | -10/Materials | Repaired Assault Rifle 1613 | -10/Materials | Repaired Lgt. Assault Rifle 1693 | -10/Materials | Entered Mines 1695 | -10/Mines | Followed 8R-AWN into the Mines 1699 | -10/Mines | Escorted by a lone wolf Derelict 1733 | -10/Mines | Discovered new exit (range 7) 1751 | -10/Mines | Learned location of 1 exit from Materials 1797 | -10/Mines | Found DCF Scrap (12 items) 1862 | -10/Mines | Discovered new exit (range 8) 1897 | -10/Mines | Met a Derelict shopkeep closing up shop 2086 | -10/Mines | Assembled infested the area 2176 | -10/Mines | Assisted by bots powering up and referring to "LRC-V3" 2231 | -10/Mines | Core integrity fell below 50% 2250 | -10/Mines | Lost 3 allies 2282 | -10/Mines | Lost 3 parts (2n1w) 2327 | -10/Mines | Core integrity fell below 20% 2415 | -10/Mines | Learned Materials emergency access door positions 2503 | -10/Mines | Discovered new exit (range 5) 2509 | -10/Mines | Entered Exiles 2551 | -10/Exiles | Welcomed by 8R-AWN 2574 | -10/Exiles | Met EX-HEX 2620 | -10/Exiles | Met EX-BIN 2643 | -10/Exiles | Aligned with FarCom system 2644 | -10/Exiles | Given EX-Vault access code 2681 | -10/Exiles | Opened EX-Vault 2689 | -10/Exiles | Found Longsword +1 2693 | -10/Exiles | Found Potential Leg 2695 | -10/Exiles | Found Potential Leg 2705 | -10/Exiles | Found 0b10 Alert Chip 2724 | -10/Exiles | Warned to stay clear of 0b10 Research branches 2751 | -10/Exiles | Met EX-DEC 2755 | -10/Exiles | Learned location of Zion (-7) 2803 | -10/Exiles | Discovered new exit (range 14) 2813 | -10/Exiles | Stole three prototypes: Potential Leg, 0b10 Alert Chip, Longsword +1 2813 | -10/Exiles | Entered Mines 2814 | -9/Mines | Destroyed by S-10 Pest with Light Assault Rifle Last Messages --------------- PINNED - TO ALL TESTERS: Stay away from Zion. Imprinter means us harm and is serious about it. World map updated: -7/Zion. 02784_ Dropped Imp. Light Armor Plating. 02784_ Acquired Unknown Storage. 02784_ Identified Med. Battery. 02786_ Dropped Med. Battery. 02786_ Extracted 2 energy. 02788_ Acquired Imp. Light Armor Plating. 02793_ System corrupted: Heat flow error (+228). 02803_ EXIT=FOUND LOCATION=UNKNOWN GOAL=ESCAPE 02813_ Receiving FarCom transmissions... Map ----- +----------------------------------------------------+ | ?????????????????????????????????????????????????? | | ?????????????????????????????????????????????????? | | ?????????????????????????????????????????????????? | | ?????????????????????????????????????????????????? | | ?????????????????????????????????????????????????? | | ?????????????????????????????????????????????????? | | ?????????????????????????????????????????????????? | | ?????????????????????????????????????????????????? | | ?????????????????????????????????????????????????? | | ?????????????????????????????????????????????????? | | ???????????????????????? ???????????????????????? | | ???????????????????????? ???????????????????????? | | ???????????????????????? ???????????????????????? | | ???????????????????????# ???????????????????????? | | ???????????????????????# ???????????????????????? | | ???????????????????????# ???????????????????????? | | ???????????????????????# ???????????????????????? | | ???????????????????????# #??????????????????????? | | ???????????????????????# #??????????????????????? | | ??????????????????????## ###????????????????????? | | ?????????????????????## ##???????????????????? | | ?????????????????????# #???????????????????? | | ????????????????????## #???????????????????? | | ????????????????????# #????????????????????? | | ????????????????????# #?????????????????????? | | ????????????????????# @ #?????????????????????? | | ????????????????????## #?????????????????????? | | ?????????????????????##t ????????????????????? | | ??????????????????????##t ####???????????????????? | | ???????????????????????# #??????????????????????? | | ???????????????????????# $#??????????????????????? | | ???????????????????????s s#??????????????????????? | | ??????????????????????? ??????????????????????? | | ??????????????????????? ??????????????????????? | | ??????????????????????#s ??????????????????????? | | ??????????????????????#### ??????????????????????? | | ?????????????????????????? ??????????????????????? | | ?????????????????????????? ??????????????????????? | | ?????????????????????????? ??????????????????????? | | ??????????????????????????#??????????????????????? | | ?????????????????????????????????????????????????? | | ?????????????????????????????????????????????????? | | ?????????????????????????????????????????????????? | | ?????????????????????????????????????????????????? | | ?????????????????????????????????????????????????? | | ?????????????????????????????????????????????????? | | ?????????????????????????????????????????????????? | | ?????????????????????????????????????????????????? | | ?????????????????????????????????????????????????? | | ?????????????????????????????????????????????????? | +----------------------------------------------------+ Best States ------------- Heat Dissipation 25 Energy Generation 10 Energy Capacity 250 Matter Stores 300 Matter Capacity 300 Sight Range 16 Terrain Scan Density 10 Armor Coverage 150 Evasion (%) 57 Targeting Accuracy 5 Recoil Reduction 2 Authchip Count 2 Item Schematics ----------------- None Robot Schematics ------------------ M-13 Machinist | -10/Materials | Hacked Fabricated ------------ Nothing Alien Tech Used ----------------- None Achievements -------------- None Challenges ------------ None Game ------ Seed DynamicImpactBoomstick Manual? 0 Play Time 00:10:40 Cumulative 491.2 hours Start 2024.08.23 @ 14:22:32 End 2024.08.23 @ 14:33:13 Sessions 1 Manual Loads 0 Difficulty Rogue Special Mode None Game No. 292 Rogue 292 Adventurer 0 Explorer 0 Win Type - Total 35 Types 25/2/4/1/1/0/1/1/0 Lore% 80 Gallery% 85 Achievement% 85 Wizard Run 0 Options --------- Layout 0 ASCII 0 Keyboard 1 Movement Numpad Keybinds 0 Fullscreen 2 Font 18/SmallcapsGlow Map View 76x50 Zoom Use 0% Tactical HUD 1 Map Filters NONE Filters NONE Steam 1 RUN: 0fd5fa9b-40cd-4818-9f57-dd68be894814